[Event "GER-ch Youth U10 2020"]
[Site "Willingen"]
[Date "2020.10.30"]
[Round "6.4"]
[White "Buchinger, Alexis"]
[Black "Marcziter, Alex"]
[Result "1-0"]
[ECO "C50"]
[WhiteElo "1496"]
[BlackElo "1401"]
[Annotator "NA RC"]
[PlyCount "121"]
[EventDate "2020.10.27"]
[EventType "swiss"]
[EventRounds "7"]
[EventCountry "GER"]
[SourceTitle "playchess.com"]
[Source "ChessBase"]
[SourceQuality "1"]
[TimeControl "40/4500+30:900+30"]

1. e4 {[%emt 0:00:00]} e5 {[%emt 0:00:03]} 2. Nf3 {[%emt 0:00:00]} Nc6 {[%emt 0:01:00]} 3. Bc4 {[%emt 0:00:00]} Nf6 {[%emt 0:01:54]} 4. d3 {[%emt 0:00:04]} Bc5 {[%emt 0:01:21]} 5. O-O {[%emt 0:00:33]} h6 {[%emt 0:01:56]} 6. c3 {[%emt 0:00:14]} d6 {[%emt 0:01:50]} 7. a4 {[%emt 0:00:08]} a6 {[%emt 0:01:30]} 8. Re1 {[%emt 0:00:33]} O-O {[%emt 0:02:10]} 9. Nbd2 {[%emt 0:00:11]} Be6 {[%emt 0:01:41]} 10. Bxe6 {[%emt 0:00:30]} fxe6 {[%emt 0:00:39]} 11. Nf1 {[%emt 0:00:28]} Ba7 {[%emt 0:02:58]} 12. Be3 {[%emt 0:00:32]} Qe8 {[%emt 0:00:50]} 13. Bxa7 {[%emt 0:01:20]} Rxa7 {[%emt 0:01:29]} 14. Ng3 {[%emt 0:00:57]} Ra8 {[%emt 0:01:15]} 15. b4 {[%emt 0:00:39]} b5 {[%emt 0:02:43]} 16. Qb3 {[%emt 0:01:26]} Kh7 {[%emt 0:02:10]} 17. axb5 {[%emt 0:00:37]} axb5 {[%emt 0:01:00]} 18. Rxa8 {[%emt 0:00:07]} Qxa8 {[%emt 0:00:09]} 19. Qxe6 {[%emt 0:00:25]} Qa3 {[%emt 0:00:32]} 20. Ne2 {[%emt 0:00:48]} Qb2 {[%emt 0:03:19]} 21. Nh4 {[%emt 0:03:57]} g6 {[%emt 0:02:17]} 22. Qh3 {[%emt 0:02:08]} Nb8 {[%emt 0:02:52]} 23. Nf3 {[%emt 0:01:08]} Kg7 {[%emt 0:01:35]} 24. Nh4 {[%emt 0:07:48]} Qd2 {[%emt 0:03:32]} 25. Kf1 {[%emt 0:01:01]} Kh7 {[%emt 0:01:15]} 26. Nf3 {[%emt 0:02:30]} Qa2 {[%emt 0:01:23]} 27. Ng5+ {[%emt 0:00:23]} Kg7 {[%emt 0:01:02]} 28. Ne6+ {[%emt 0:00:06]} Kf7 {[%emt 0:00:15]} 29. Nxf8 {[%emt 0:00:13]} Kxf8 {[%emt 0:00:10]} 30. Qc8+ {[%emt 0:00:09]} Ne8 {[%emt 0:00:27]} 31. Qxb8 {[%emt 0:00:06]} c6 {[%emt 0:00:16]} 32. Rd1 {[%emt 0:01:05]} Qc2 {[%emt 0:00:18]} 33. Ke1 {[%emt 0:00:04]} Qb3 {[%emt 0:00:21]} 34. f3 {[%emt 0:00:47]} Qf7 {[%emt 0:00:10]} 35. Ra1 {[%emt 0:00:10]} Qe7 {[%emt 0:00:45]} 36. Ra8 {[%emt 0:00:26]} Qh4+ {[%emt 0:00:20]} 37. g3 {[%emt 0:00:09]} Qe7 {[%emt 0:00:04]} 38. Nc1 {[%emt 0:00:21]} Qd7 {[%emt 0:00:17]} 39. Nb3 {[%emt 0:00:10]} Qe7 {[%emt 0:00:15]} 40. Na5 {[%emt 0:00:09]} Qd7 {[%emt 0:00:12]} 41. Qb7 {[%emt 0:15:14]} Qe6 {[%emt 0:15:16]} 42. Qxc6 {[%emt 0:00:17]} Kg7 {[%emt 0:00:11]} 43. Qxe8 {[%emt 0:00:07]} Qxe8 {[%emt 0:00:05]} 44. Rxe8 {[%emt 0:00:11]} Kf7 {[%emt 0:00:04]} 45. Rb8 {[%emt 0:00:10]} g5 {[%emt 0:00:08]} 46. Rxb5 {[%emt 0:00:07]} h5 {[%emt 0:00:02]} 47. Nc6 {[%emt 0:00:13]} g4 {[%emt 0:00:11]} 48. Nxe5+ {[%emt 0:00:09]} dxe5 {[%emt 0:00:04]} 49. Rxe5 {[%emt 0:00:06]} gxf3 {[%emt 0:00:03]} 50. Rxh5 {[%emt 0:00:08]} f2+ {[%emt 0:00:05]} 51. Kxf2 {[%emt 0:00:04]} Kg6 {[%emt 0:00:05]} 52. Ra5 {[%emt 0:00:08]} Kf6 {[%emt 0:00:04]} 53. b5 {[%emt 0:00:04]} Ke6 {[%emt 0:00:05]} 54. h4 {[%emt 0:00:06]} Kd6 {[%emt 0:00:04]} 55. h5 {[%emt 0:00:05]} Ke6 {[%emt 0:00:10]} 56. b6 {[%emt 0:00:08]} Kf6 {[%emt 0:00:07]} 57. b7 {[%emt 0:00:06]} Ke6 {[%emt 0:00:05]} 58. b8=Q {[%emt 0:00:10]} Kf6 {[%emt 0:00:03]} 59. Qb6+ {[%emt 0:00:50]} Ke7 {[%emt 0:00:05]} 60. Ra7+ {[%emt 0:00:21]} Ke8 {[%emt 0:00:06]} 61. Qb8# {[%emt 0:00:19]} 1-0

[Event "GER-ch Youth U10 2020"]
[Site "Willingen"]
[Date "2020.10.30"]
[Round "6.5"]
[White "Barthel, Jacob"]
[Black "Dordevic, Tom"]
[Result "0-1"]
[ECO "D02"]
[WhiteElo "1231"]
[BlackElo "1535"]
[Annotator "NA RC"]
[PlyCount "110"]
[EventDate "2020.10.27"]
[EventType "swiss"]
[EventRounds "7"]
[EventCountry "GER"]
[SourceTitle "playchess.com"]
[Source "ChessBase"]
[SourceQuality "1"]
[TimeControl "40/4500+30:900+30"]

1. d4 {[%emt 0:00:00]} d5 {[%emt 0:00:00]} 2. Bf4 {[%emt 0:00:00]} Nf6 {[%emt 0:00:00]} 3. Nf3 {[%emt 0:00:00]} e6 {[%emt 0:00:00]} 4. e3 {[%emt 0:00:27]} c5 {[%emt 0:02:44]} 5. c3 {[%emt 0:00:25]} Bd6 {[%emt 0:00:27]} 6. Bg3 {[%emt 0:00:20]} Qc7 {[%emt 0:00:56]} 7. Bd3 {[%emt 0:02:58]} c4 {[%emt 0:00:27]} 8. Bc2 {[%emt 0:00:16]} Nbd7 {[%emt 0:00:43]} 9. Nbd2 {[%emt 0:10:46]} e5 {[%emt 0:02:37]} 10. dxe5 {[%emt 0:04:27]} Nxe5 {[%emt 0:00:40]} 11. Bxe5 {[%emt 0:00:43]} Bxe5 {[%emt 0:00:05]} 12. Nxe5 {[%emt 0:00:21]} Qxe5 {[%emt 0:00:07]} 13. Nf3 {[%emt 0:00:14]} Qe7 {[%emt 0:00:53]} 14. h3 {[%emt 0:00:31]} h6 {[%emt 0:02:41]} 15. Qe2 {[%emt 0:06:40]} b5 {[%emt 0:06:34]} 16. Nd4 {[%emt 0:03:48]} Bd7 {[%emt 0:04:44]} 17. Rd1 {[%emt 0:03:12]} a5 {[%emt 0:14:33]} 18. O-O {[%emt 0:10:38]} O-O {[%emt 0:03:21]} 19. Ra1 {[%emt 0:02:50]} Rfe8 {[%emt 0:13:28]} 20. Rfd1 {[%emt 0:05:27]} Ne4 {[%emt 0:07:46]} 21. Nf3 {[%emt 0:11:56]} Be6 {[%emt 0:04:07]} 22. Nd4 {[%emt 0:02:03]} Qb7 {[%emt 0:01:49]} 23. f3 {[%emt 0:08:46]} Nc5 {[%emt 0:03:53]} 24. Rd2 {[%emt 0:02:54]} b4 {[%emt 0:05:18]} 25. Rb1 {[%emt 0:01:27]} Ra6 {[%emt 0:02:40]} 26. Rdd1 {[%emt 0:01:18]} Qe7 {[%emt 0:02:27]} 27. Re1 {[%emt 0:00:13]} Qg5 {[%emt 0:00:59]} 28. g4 {[%emt 0:01:07]} Qe7 {[%emt 0:01:20]} 29. Kg2 {[%emt 0:01:17]} Rb6 {[%emt 0:01:05]} 30. Kf2 {[%emt 0:01:21]} Qf6 {[%emt 0:00:38]} 31. Qd2 {[%emt 0:01:02]} h5 {[%emt 0:00:44]} 32. Bf5 {[%emt 0:00:32]} Bxf5 {[%emt 0:00:09]} 33. Nxf5 {[%emt 0:00:10]} Nd3+ {[%emt 0:00:05]} 34. Kg3 {[%emt 0:00:47]} Nxe1 {[%emt 0:00:16]} 35. Qxe1 {[%emt 0:00:04]} bxc3 {[%emt 0:00:10]} 36. bxc3 {[%emt 0:00:18]} Rxb1 {[%emt 0:00:11]} 37. Qxb1 {[%emt 0:00:04]} Qxc3 {[%emt 0:00:23]} 38. Qb5 {[%emt 0:00:43]} Qe5+ {[%emt 0:01:19]} 39. f4 {[%emt 0:00:34]} Rb8 {[%emt 0:02:01]} 40. Qc5 {[%emt 0:01:20]} Qa1 {[%emt 0:01:01]} 41. Kh4 {[%emt 0:16:51]} Qe1+ {[%emt 0:16:22]} 42. Kg5 {[%emt 0:00:39]} hxg4 {[%emt 0:00:00]} 43. Qd4 {[%emt 0:00:00]} f6+ {[%emt 0:00:00]} 44. Kg6 {[%emt 0:00:00]} Qb1 {[%emt 0:00:00]} 45. Qxd5+ {[%emt 0:00:00]} Kh8 {[%emt 0:00:00]} 46. Qf7 {[%emt 0:00:00]} Rg8 {[%emt 0:00:00]} 47. hxg4 {[%emt 0:00:00]} Qh1 {[%emt 0:00:00]} 48. Qxc4 {[%emt 0:00:00]} Rf8 {[%emt 0:00:00]} 49. Nh6 {[%emt 0:00:00]} Qxh6+ {[%emt 0:00:00]} 50. Kf5 {[%emt 0:00:00]} Qh7+ {[%emt 0:00:00]} 51. Ke6 {[%emt 0:00:00]} Qg8+ {[%emt 0:00:00]} 52. Kf5 {[%emt 0:00:00]} Qxc4 {[%emt 0:00:00]} 53. e4 {[%emt 0:00:00]} g6+ {[%emt 0:00:00]} 54. Kxg6 {[%emt 0:00:00]} Qxe4+ {[%emt 0:00:00]} 55. Kh5 {[%emt 0:00:00]} Qh7# {[%emt 0:00:00]} 0-1

[Event "GER-ch Youth U10 2020"]
[Site "Willingen"]
[Date "2020.10.30"]
[Round "6.6"]
[White "Burkart, Lloyd Shang"]
[Black "Schuricht, Emil Frederick"]
[Result "1-0"]
[ECO "E85"]
[WhiteElo "1508"]
[BlackElo "1451"]
[Annotator "NA RC"]
[PlyCount "87"]
[EventDate "2020.10.27"]
[EventType "swiss"]
[EventRounds "7"]
[EventCountry "GER"]
[SourceTitle "playchess.com"]
[Source "ChessBase"]
[SourceQuality "1"]
[TimeControl "40/4500+30:900+30"]

1. d4 {[%emt 0:00:00]} Nf6 {[%emt 0:00:00]} 2. c4 {[%emt 0:00:00]} g6 {[%emt 0:00:00]} 3. Nc3 {[%emt 0:00:14]} Bg7 {[%emt 0:00:00]} 4. e4 {[%emt 0:00:28]} d6 {[%emt 0:00:00]} 5. f3 {[%emt 0:00:25]} O-O {[%emt 0:00:20]} 6. Be3 {[%emt 0:00:55]} e5 {[%emt 0:00:19]} 7. Nge2 Nbd7 {[%emt 0:00:49]} 8. Qd2 {[%emt 0:00:41]} b6 {[%emt 0:02:00]} 9. Rd1 {[%emt 0:01:08]} Re8 {[%emt 0:02:20]} 10. d5 {[%emt 0:00:13]} a5 {[%emt 0:00:16]} 11. g4 {[%emt 0:02:58]} Ba6 {[%emt 0:02:22]} 12. Ng3 {[%emt 0:00:37]} Nc5 {[%emt 0:02:14]} 13. h4 {[%emt 0:00:52]} Nfd7 {[%emt 0:01:18]} 14. Qh2 {[%emt 0:01:55]} Rc8 {[%emt 0:02:33]} 15. h5 {[%emt 0:02:57]} Nf8 {[%emt 0:00:34]} 16. b3 {[%emt 0:06:31]} Re7 {[%emt 0:04:07]} 17. Bh3 {[%emt 0:10:15]} Rb8 {[%emt 0:02:28]} 18. g5 b5 {[%emt 0:03:23]} 19. cxb5 {[%emt 0:04:00]} Bxb5 {[%emt 0:00:16]} 20. Nxb5 {[%emt 0:00:02]} Rxb5 {[%emt 0:00:06]} 21. Bf1 {[%emt 0:05:12]} Rb6 {[%emt 0:06:58]} 22. Qf2 {[%emt 0:03:00]} Nfd7 {[%emt 0:03:04]} 23. Qd2 {[%emt 0:07:02]} Qa8 {[%emt 0:02:01]} 24. Be2 {[%emt 0:03:19]} Rb4 {[%emt 0:06:46]} 25. Kf2 {[%emt 0:02:15]} Re8 {[%emt 0:02:57]} 26. Qc2 {[%emt 0:05:17]} a4 {[%emt 0:02:05]} 27. Bc4 {[%emt 0:02:17]} Reb8 {[%emt 0:03:14]} 28. Bd2 {[%emt 0:02:45]} axb3 {[%emt 0:02:43]} 29. axb3 {[%emt 0:00:16]} R4b6 {[%emt 0:01:36]} 30. Ra1 {[%emt 0:01:10]} Na6 {[%emt 0:04:45]} 31. b4 {[%emt 0:01:32]} Qb7 {[%emt 0:03:09]} 32. b5 {[%emt 0:02:08]} Nac5 {[%emt 0:03:13]} 33. Ba5 {[%emt 0:00:16]} Rxb5 {[%emt 0:00:27]} 34. Bxb5 {[%emt 0:00:05]} Qxb5 35. Rhb1 {[%emt 0:00:32]} Qd3 {[%emt 0:06:36]} 36. Rxb8+ {[%emt 0:01:14]} Nxb8 {[%emt 0:00:11]} 37. Qxd3 {[%emt 0:00:51]} Nxd3+ {[%emt 0:00:07]} 38. Ke3 {[%emt 0:06:28]} Nf4 {[%emt 0:01:15]} 39. Bxc7 {[%emt 0:01:56]} Nd7 {[%emt 0:00:41]} 40. Ra8+ {[%emt 0:07:22]} Bf8 {[%emt 0:00:46]} 41. Bxd6 {[%emt 0:16:12]} gxh5 {[%emt 0:16:34]} 42. Bxf8 {[%emt 0:00:26]} Nxf8 {[%emt 0:00:11]} 43. d6 {[%emt 0:00:29]} Kg7 44. Nf5+ {[%emt 0:00:21]} 1-0

[Event "GER-ch Youth U10 2020"]
[Site "Willingen"]
[Date "2020.10.30"]
[Round "6.7"]
[White "Lu, Yunong Elias"]
[Black "Xue, Luka"]
[Result "1-0"]
[ECO "B01"]
[WhiteElo "1521"]
[BlackElo "1473"]
[Annotator "NA RC"]
[PlyCount "61"]
[EventDate "2020.10.27"]
[EventType "swiss"]
[EventRounds "7"]
[EventCountry "GER"]
[SourceTitle "playchess.com"]
[Source "ChessBase"]
[SourceQuality "1"]
[TimeControl "40/4500+30:900+30"]

1. e4 {[%emt 0:00:00]} d5 {[%emt 0:00:00]} 2. exd5 {[%emt 0:01:17]} Qxd5 {[%emt 0:00:11]} 3. Nc3 {[%emt 0:00:16]} Qd6 {[%emt 0:00:12]} 4. d4 {[%emt 0:02:45]} Nf6 {[%emt 0:00:31]} 5. Bc4 {[%emt 0:01:40]} Bg4 {[%emt 0:00:34]} 6. f3 {[%emt 0:00:39]} Bf5 {[%emt 0:02:04]} 7. Nge2 {[%emt 0:00:48]} c6 {[%emt 0:01:39]} 8. Bf4 {[%emt 0:00:36]} Qb4 {[%emt 0:01:08]} 9. Bb3 {[%emt 0:00:45]} e6 {[%emt 0:00:31]} 10. O-O {[%emt 0:00:35]} Nbd7 {[%emt 0:00:15]} 11. Re1 {[%emt 0:01:20]} Be7 {[%emt 0:01:04]} 12. Ng3 {[%emt 0:00:31]} O-O {[%emt 0:01:01]} 13. a3 {[%emt 0:00:18]} Qa5 {[%emt 0:00:35]} 14. d5 {[%emt 0:02:08]} Bc5+ {[%emt 0:04:16]} 15. Kh1 {[%emt 0:01:51]} cxd5 {[%emt 0:02:10]} 16. Nxf5 {[%emt 0:02:08]} exf5 {[%emt 0:00:15]} 17. Nxd5 {[%emt 0:00:11]} Nxd5 {[%emt 0:04:08]} 18. Bxd5 {[%emt 0:02:29]} Rad8 {[%emt 0:02:12]} 19. b4 {[%emt 0:01:33]} Bxb4 {[%emt 0:00:51]} 20. axb4 {[%emt 0:00:08]} Qxb4 {[%emt 0:00:09]} 21. Bd6 {[%emt 0:00:37]} Qh4 {[%emt 0:17:46]} 22. Bxf8 {[%emt 0:00:32]} Nxf8 {[%emt 0:00:17]} 23. c4 {[%emt 0:00:18]} Ng6 {[%emt 0:00:59]} 24. Qc2 {[%emt 0:00:34]} Qf6 {[%emt 0:05:09]} 25. Rxa7 {[%emt 0:00:34]} Qh4 {[%emt 0:07:31]} 26. Rea1 {[%emt 0:00:56]} Re8 {[%emt 0:03:30]} 27. Ra8 {[%emt 0:01:02]} Rxa8 {[%emt 0:00:15]} 28. Rxa8+ {[%emt 0:00:18]} Nf8 {[%emt 0:00:07]} 29. Qe2 {[%emt 0:00:28]} Qf4 {[%emt 0:00:53]} 30. Bxf7+ {[%emt 0:01:40]} Kxf7 {[%emt 0:00:53]} 31. Qe8+ 1-0

[Event "GER-ch Youth U10 2020"]
[Site "Willingen"]
[Date "2020.10.30"]
[Round "6.8"]
[White "Nönnig, Jakob"]
[Black "Malinowsky, Levi"]
[Result "0-1"]
[ECO "C00"]
[WhiteElo "1442"]
[BlackElo "1606"]
[Annotator "NA RC"]
[PlyCount "112"]
[EventDate "2020.10.27"]
[EventType "swiss"]
[EventRounds "7"]
[EventCountry "GER"]
[SourceTitle "playchess.com"]
[Source "ChessBase"]
[SourceQuality "1"]
[TimeControl "40/4500+30:900+30"]

1. e4 {[%emt 0:00:00]} e6 {[%emt 0:00:00]} 2. d4 {[%emt 0:00:00]} d5 {[%emt 0:00:00]} 3. Bd3 {[%emt 0:00:00]} dxe4 {[%emt 0:01:10]} 4. Bxe4 {[%emt 0:00:00]} Nf6 {[%emt 0:00:55]} 5. Bf3 {[%emt 0:00:00]} Nc6 {[%emt 0:01:59]} 6. Ne2 {[%emt 0:03:59]} Bd7 {[%emt 0:02:37]} 7. O-O {[%emt 0:05:01]} Bd6 {[%emt 0:02:15]} 8. c4 {[%emt 0:05:22]} O-O {[%emt 0:06:55]} 9. Bg5 {[%emt 0:03:48]} h6 {[%emt 0:01:58]} 10. Bh4 {[%emt 0:01:26]} Be7 {[%emt 0:05:54]} 11. Nbc3 {[%emt 0:04:31]} Nh7 {[%emt 0:02:38]} 12. Bxe7 Qxe7 {[%emt 0:00:10]} 13. Be4 {[%emt 0:08:27]} Nf6 {[%emt 0:02:28]} 14. Bf3 {[%emt 0:03:02]} Rad8 {[%emt 0:04:31]} 15. Qc2 {[%emt 0:03:51]} Nb4 {[%emt 0:06:50]} 16. Qb3 {[%emt 0:01:14]} Bc6 {[%emt 0:04:30]} 17. Bxc6 {[%emt 0:10:14]} Nxc6 {[%emt 0:00:10]} 18. Rad1 {[%emt 0:01:28]} b6 {[%emt 0:04:18]} 19. a4 {[%emt 0:04:51]} a5 {[%emt 0:05:51]} 20. Rfe1 {[%emt 0:03:02]} Nb4 {[%emt 0:03:17]} 21. Na2 {[%emt 0:01:29]} Nxa2 {[%emt 0:01:29]} 22. Qxa2 {[%emt 0:00:11]} c6 {[%emt 0:03:59]} 23. Nc3 {[%emt 0:02:32]} Qd7 {[%emt 0:02:19]} 24. Qb3 {[%emt 0:01:08]} Qb7 {[%emt 0:01:08]} 25. h3 {[%emt 0:02:13]} Rfe8 {[%emt 0:00:24]} 26. Re3 {[%emt 0:01:05]} Re7 {[%emt 0:02:21]} 27. Red3 {[%emt 0:01:49]} Red7 {[%emt 0:00:52]} 28. Ne2 {[%emt 0:01:28]} Qa6 {[%emt 0:03:05]} 29. Qc2 {[%emt 0:02:09]} c5 {[%emt 0:02:37]} 30. dxc5 {[%emt 0:02:05]} bxc5 {[%emt 0:00:11]} 31. Rxd7 Rxd7 {[%emt 0:00:08]} 32. Rxd7 {[%emt 0:02:26]} Nxd7 {[%emt 0:00:05]} 33. b3 {[%emt 0:00:29]} Qd6 {[%emt 0:01:09]} 34. Nc3 {[%emt 0:00:52]} Ne5 {[%emt 0:02:51]} 35. Ne2 {[%emt 0:01:39]} Nc6 {[%emt 0:01:26]} 36. Nc3 {[%emt 0:01:25]} Nb4 {[%emt 0:00:12]} 37. Qe2 {[%emt 0:00:50]} Kf8 {[%emt 0:01:57]} 38. Kf1 {[%emt 0:01:29]} Ke7 {[%emt 0:01:51]} 39. Ne4 {[%emt 0:02:21]} Qd4 {[%emt 0:01:46]} 40. g4 {[%emt 0:01:32]} Nd3 {[%emt 0:01:58]} 41. Ng3 {[%emt 0:16:28]} Qa1+ {[%emt 0:15:15]} 42. Kg2 {[%emt 0:00:36]} Nf4+ {[%emt 0:00:10]} 43. Kf3 {[%emt 0:00:15]} Nxe2 {[%emt 0:00:07]} 44. Nxe2 {[%emt 0:00:07]} Qd1 {[%emt 0:00:16]} 45. h4 {[%emt 0:00:46]} Qxb3+ {[%emt 0:00:06]} 46. Kg2 {[%emt 0:00:10]} Qxc4 {[%emt 0:00:06]} 47. Ng3 {[%emt 0:00:19]} Qxa4 {[%emt 0:00:07]} 48. Ne2 {[%emt 0:00:14]} Qxg4+ {[%emt 0:00:11]} 49. Kf1 {[%emt 0:00:03]} a4 {[%emt 0:00:09]} 50. Nc3 {[%emt 0:00:17]} Qh3+ {[%emt 0:00:08]} 51. Ke2 {[%emt 0:00:09]} Qxc3 {[%emt 0:00:05]} 52. f3 {[%emt 0:00:08]} a3 {[%emt 0:00:05]} 53. Kf2 {[%emt 0:00:04]} a2 {[%emt 0:00:04]} 54. Kg3 {[%emt 0:00:06]} a1=Q {[%emt 0:00:09]} 55. Kg4 {[%emt 0:00:12]} Qg1+ {[%emt 0:00:09]} 56. Kf4 {[%emt 0:00:25]} Qcd4# 0-1

[Event "GER-ch Youth U10 2020"]
[Site "Willingen"]
[Date "2020.10.30"]
[Round "6.9"]
[White "Middendorf, Sven-Jonas"]
[Black "Pimenov, Danil"]
[Result "1-0"]
[ECO "B31"]
[WhiteElo "1355"]
[BlackElo "1235"]
[Annotator "NA RC"]
[PlyCount "43"]
[EventDate "2020.10.27"]
[EventType "swiss"]
[EventRounds "7"]
[EventCountry "GER"]
[SourceTitle "playchess.com"]
[Source "ChessBase"]
[SourceQuality "1"]
[TimeControl "40/4500+30:900+30"]

1. e4 {[%emt 0:00:00]} c5 {[%emt 0:00:00]} 2. Nf3 {[%emt 0:00:00]} Nc6 {[%emt 0:00:00]} 3. Bb5 {[%emt 0:00:00]} g6 {[%emt 0:00:00]} 4. O-O {[%emt 0:00:00]} Bg7 {[%emt 0:00:00]} 5. c3 {[%emt 0:00:15]} a6 {[%emt 0:00:48]} 6. Ba4 {[%emt 0:00:19]} b5 {[%emt 0:00:18]} 7. Bc2 {[%emt 0:00:12]} d6 {[%emt 0:00:18]} 8. h3 {[%emt 0:01:24]} Nf6 {[%emt 0:00:17]} 9. Re1 {[%emt 0:00:41]} O-O {[%emt 0:00:51]} 10. d4 {[%emt 0:02:53]} cxd4 {[%emt 0:00:51]} 11. cxd4 {[%emt 0:00:33]} e5 {[%emt 0:02:09]} 12. dxe5 {[%emt 0:05:17]} dxe5 {[%emt 0:00:11]} 13. Nc3 {[%emt 0:03:18]} Be6 {[%emt 0:01:04]} 14. Bg5 {[%emt 0:02:25]} Qc7 {[%emt 0:01:09]} 15. Nd5 {[%emt 0:07:05]} Bxd5 {[%emt 0:04:05]} 16. exd5 {[%emt 0:02:31]} Rfd8 {[%emt 0:03:49]} 17. Bb3 {[%emt 0:03:31]} e4 {[%emt 0:05:12]} 18. Rc1 {[%emt 0:04:08]} exf3 {[%emt 0:01:26]} 19. Rxc6 {[%emt 0:00:21]} Qxc6 {[%emt 0:00:27]} 20. dxc6 {[%emt 0:00:04]} Rxd1 {[%emt 0:00:18]} 21. Rxd1 {[%emt 0:00:09]} fxg2 {[%emt 0:09:45]} 22. c7 {[%emt 0:00:51]} 1-0

[Event "GER-ch Youth U10 2020"]
[Site "Willingen"]
[Date "2020.10.30"]
[Round "6.10"]
[White "Kullmann, Theo"]
[Black "Aweh, Mads"]
[Result "1/2-1/2"]
[ECO "B23"]
[WhiteElo "1632"]
[BlackElo "1328"]
[Annotator "NA RC"]
[PlyCount "108"]
[EventDate "2020.10.27"]
[EventType "swiss"]
[EventRounds "7"]
[EventCountry "GER"]
[SourceTitle "playchess.com"]
[Source "ChessBase"]
[SourceQuality "1"]
[TimeControl "40/4500+30:900+30"]

1. e4 {[%emt 0:00:00]} c5 {[%emt 0:00:00]} 2. Nc3 {[%emt 0:00:00]} e6 {[%emt 0:00:07]} 3. d3 {[%emt 0:00:00]} d5 {[%emt 0:00:07]} 4. e5 {[%emt 0:02:34]} Nc6 {[%emt 0:00:41]} 5. f4 {[%emt 0:00:39]} Bd7 {[%emt 0:01:26]} 6. g3 {[%emt 0:00:53]} Nge7 {[%emt 0:00:30]} 7. Bg2 {[%emt 0:01:43]} Ng6 {[%emt 0:01:30]} 8. Nf3 {[%emt 0:02:12]} Be7 {[%emt 0:01:02]} 9. Bd2 {[%emt 0:01:19]} O-O {[%emt 0:00:35]} 10. O-O {[%emt 0:01:02]} Qb6 {[%emt 0:00:53]} 11. b3 {[%emt 0:11:09]} c4+ {[%emt 0:00:24]} 12. Kh1 {[%emt 0:00:33]} cxd3 {[%emt 0:00:26]} 13. cxd3 {[%emt 0:00:35]} Nb4 {[%emt 0:00:28]} 14. Be1 {[%emt 0:04:55]} Qa6 {[%emt 0:05:13]} 15. d4 {[%emt 0:03:25]} Rac8 {[%emt 0:04:13]} 16. Rg1 {[%emt 0:06:55]} b6 {[%emt 0:02:22]} 17. Bf1 {[%emt 0:01:11]} Qb7 {[%emt 0:00:25]} 18. a3 {[%emt 0:03:22]} Nc6 {[%emt 0:01:19]} 19. b4 {[%emt 0:00:28]} Rfd8 {[%emt 0:00:46]} 20. Qd2 {[%emt 0:04:11]} a5 {[%emt 0:04:53]} 21. b5 {[%emt 0:01:06]} Na7 {[%emt 0:00:28]} 22. a4 {[%emt 0:01:58]} Qc7 {[%emt 0:01:27]} 23. Rc1 {[%emt 0:01:16]} Bb4 {[%emt 0:00:47]} 24. Qe3 {[%emt 0:00:21]} Ne7 {[%emt 0:01:36]} 25. Bd3 {[%emt 0:01:19]} Qb7 {[%emt 0:00:55]} 26. g4 {[%emt 0:01:07]} Rc7 {[%emt 0:01:01]} 27. f5 {[%emt 0:01:45]} Rdc8 {[%emt 0:01:10]} 28. Bb1 {[%emt 0:01:10]} Bxc3 {[%emt 0:01:57]} 29. Bxc3 {[%emt 0:00:32]} exf5 {[%emt 0:00:37]} 30. gxf5 {[%emt 0:00:17]} Nxf5 {[%emt 0:00:18]} 31. Qg5 {[%emt 0:00:48]} g6 {[%emt 0:00:15]} 32. Bd2 {[%emt 0:01:20]} Rxc1 {[%emt 0:00:43]} 33. Bxc1 {[%emt 0:00:15]} Ng7 {[%emt 0:00:31]} 34. Qh6 {[%emt 0:01:15]} Ne6 {[%emt 0:02:12]} 35. Bf5 {[%emt 0:02:34]} Rc3 {[%emt 0:02:06]} 36. Bxe6 {[%emt 0:02:43]} Rxf3 {[%emt 0:00:22]} 37. Qh5 {[%emt 0:09:09]} Bxe6 {[%emt 0:04:21]} 38. Qxf3 {[%emt 0:01:33]} Qc8 {[%emt 0:02:11]} 39. Bh6 {[%emt 0:01:07]} Qc2 {[%emt 0:01:19]} 40. Re1 {[%emt 0:02:55]} Bf5 {[%emt 0:00:53]} 41. Qxd5 {[%emt 0:15:34]} Qc8 {[%emt 0:15:50]} 42. Rg1 {[%emt 0:01:16]} Be6 {[%emt 0:01:20]} 43. Qf3 {[%emt 0:03:01]} Qd7 {[%emt 0:02:42]} 44. Qf6 {[%emt 0:02:19]} Bd5+ {[%emt 0:00:18]} 45. Rg2 {[%emt 0:00:18]} Bxg2+ {[%emt 0:00:10]} 46. Kxg2 {[%emt 0:01:51]} Qg4+ {[%emt 0:00:08]} 47. Kf2 {[%emt 0:01:20]} Qxd4+ {[%emt 0:00:26]} 48. Kg3 {[%emt 0:01:50]} Qc3+ {[%emt 0:02:37]} 49. Qf3 {[%emt 0:02:14]} Qxe5+ {[%emt 0:00:41]} 50. Kg2 {[%emt 0:01:09]} Qb2+ {[%emt 0:01:14]} 51. Kh3 {[%emt 0:00:00]} Qc2 {[%emt 0:00:00]} 52. Kg3 {[%emt 0:00:00]} Qc7+ {[%emt 0:00:00]} 53. Bf4 {[%emt 0:00:00]} Qe7 {[%emt 0:00:00]} 54. Bh6 {[%emt 0:00:00]} Qe5+ 1/2-1/2